fUST/lending_fUST_20251203
["ID","MTS","AMOUNT","RATE_DAILY","PERIOD"]
[395753636,1764720664937,-267.80219672,0.00013127,2]
[395753638,1764720664947,-465.68086334,0.00013225,2]
[395753640,1764720664956,-879.45,0.00013225,2]
[395753642,1764720664966,-500.0,0.00013225,2]
[395753644,1764720664976,-500.0,0.00013225,2]
[395753646,1764720664986,-762.74,0.00013225,2]
[395753648,1764720664995,-732.12,0.00013225,2]
[395753650,1764720665005,-618.06,0.00013225,2]
[395753652,1764720665014,-500.0,0.00013225,2]
[395753653,1764720665024,-500.0,0.00013225,2]
[395753654,1764720665034,-500.0,0.00013225,2]
[395753655,1764720665046,-795.15,0.00013225,2]
[395753656,1764720665055,-500.0,0.00013225,2]
[395753657,1764720665064,-527.01,0.00013225,2]
[395753658,1764720665074,-500.0,0.00013225,2]
[395753659,1764720665083,-500.0,0.00013225,2]
[395753660,1764720665092,-500.0,0.00013225,2]
[395753661,1764720665102,-500.0,0.00013225,2]
[395753662,1764720665111,-500.0,0.00013225,2]
[395753663,1764720665121,-500.0,0.00013225,2]
[395753664,1764720665131,-803.99,0.00013225,2]
[395753665,1764720665140,-1870.84,0.00013225,2]
[395753666,1764720665149,-500.0,0.00013225,2]
[395753667,1764720665159,-500.0,0.00013225,2]
[395753668,1764720665169,-500.0,0.00013225,2]
[395753669,1764720665178,-500.0,0.00013225,2]
[395753670,1764720665187,-1604.91,0.00013225,2]
[395753671,1764720665198,-564.82,0.00013225,2]
[395753672,1764720665208,-500.0,0.00013225,2]
[395753673,1764720665217,-500.0,0.00013225,2]
[395753674,1764720665227,-500.0,0.00013225,2]
[395753676,1764720665237,-526.87,0.00013225,2]
[395753678,1764720665247,-707.26,0.00013225,2]
[395753680,1764720665255,-500.0,0.00013225,2]
[395753682,1764720665264,-719.68,0.00013225,2]
[395753684,1764720665274,-555.14,0.00013225,2]
[395753686,1764720665283,-694.73,0.00013225,2]
[395753688,1764720665293,-500.0,0.00013225,2]
[395753690,1764720665302,-594.76,0.00013225,2]
[395753692,1764720665311,-500.0,0.00013225,2]
[395753694,1764720665322,-500.0,0.00013225,2]
[395753696,1764720665331,-500.0,0.00013225,2]
[395753698,1764720665339,-500.0,0.00013225,2]
[395753700,1764720665348,-668.18,0.00013225,2]
[395753702,1764720665359,-500.0,0.00013225,2]
[395753704,1764720665368,-500.0,0.00013225,2]
[395753706,1764720665378,-500.0,0.00013225,2]
[395753708,1764720665387,-500.0,0.00013225,2]
[395753710,1764720665396,-500.0,0.00013225,2]
[395753711,1764720665408,-500.0,0.00013225,2]
[395753713,1764720665418,-500.0,0.00013225,2]
[395753716,1764720665427,-1983.31,0.00013225,2]
[395753717,1764720665436,-500.0,0.00013225,2]
[395753719,1764720665445,-729.77,0.00013225,2]
[395753721,1764720665454,-732.84,0.00013225,2]
[395753723,1764720665463,-500.0,0.00013225,2]
[395753725,1764720665472,-500.0,0.00013225,2]
[395753727,1764720665482,-500.0,0.00013225,2]
[395753729,1764720665491,-153.46376356,0.00013225,2]
[395753731,1764720665500,-1446.79,0.00013225,2]
[395753733,1764720665509,-1364.23,0.00013225,2]
[395753735,1764720665518,-500.0,0.00013225,2]
[395753737,1764720665527,-632.29,0.00013225,2]
[395753739,1764720665536,-876.59,0.00013225,2]
[395753741,1764720665545,-500.0,0.00013225,2]
[395753743,1764720665554,-828.13,0.00013225,2]
[395753745,1764720665564,-500.0,0.00013225,2]
[395753747,1764720665574,-1186.27,0.00013225,2]
[395753749,1764720665584,-1070.09,0.00013225,2]
[395753751,1764720665593,-500.0,0.00013225,2]
[395753753,1764720665601,-715.6,0.00013225,2]
[395753755,1764720665611,-1036.08,0.00013225,2]
[395753757,1764720665619,-500.0,0.00013225,2]
[395753759,1764720665628,-500.0,0.00013225,2]
[395753761,1764720665637,-829.96,0.00013225,2]
[395753763,1764720665646,-500.0,0.00013225,2]
[395753764,1764720665655,-500.0,0.00013225,2]
[395753766,1764720665666,-500.0,0.00013225,2]
[395753768,1764720665675,-500.0,0.00013225,2]
[395753770,1764720665686,-500.0,0.00013225,2]
[395753772,1764720665695,-1234.66,0.00013225,2]
[395753774,1764720665704,-584.84898456,0.00013225,2]
[395753776,1764720665713,-500.0,0.00013225,2]
[395753778,1764720665723,-500.0,0.00013225,2]
[395753780,1764720665732,-965.42,0.00013225,2]
[395753782,1764720665741,-500.0,0.00013225,2]
[395753784,1764720665750,-941.35,0.00013225,2]
[395753786,1764720665759,-500.0,0.00013225,2]
[395753788,1764720665769,-1272.68,0.00013225,2]
[395753790,1764720665778,-453.01064057,0.00013225,2]
[395753792,1764720665787,-500.0,0.00013225,2]
[395753793,1764720665796,-643.02,0.00013225,2]
[395753795,1764720665807,-500.0,0.00013225,2]
[395753797,1764720665817,-500.0,0.00013225,2]
[395753799,1764720665827,-500.0,0.00013225,2]
[395753801,1764720665836,-540.96,0.00013225,2]
[395753803,1764720665846,-500.0,0.00013225,2]
[395753805,1764720665855,-511.34,0.00013225,2]
[395753807,1764720665864,-500.0,0.00013225,2]
[395753809,1764720665875,-500.0,0.00013225,2]
[395753811,1764720665884,-500.0,0.00013225,2]
[395753814,1764720665894,-768.82,0.00013225,2]
[395753816,1764720665903,-500.0,0.00013225,2]
[395753818,1764720665912,-500.0,0.00013225,2]
[395753820,1764720665922,-500.0,0.00013225,2]
[395753822,1764720665931,-241.57728308,0.00013225,2]
[395753823,1764720665941,-500.0,0.00013225,2]
[395753825,1764720665950,-925.08,0.00013225,2]
[395753827,1764720665960,-507.76,0.00013225,2]
[395753829,1764720665969,-987.62,0.00013225,2]
[395753831,1764720665978,-581.03,0.00013225,2]
[395753833,1764720665988,-693.01,0.00013225,2]
[395753835,1764720665997,-500.0,0.00013225,2]
[395753837,1764720666007,-500.0,0.00013225,2]
[395753839,1764720666016,-1611.79,0.00013225,2]
[395753841,1764720666025,-1314.88,0.00013225,2]
[395753843,1764720666034,-2086.09,0.00013225,2]
[395753845,1764720666043,-500.0,0.00013225,2]
[395753847,1764720666052,-500.0,0.00013225,2]
[395753849,1764720666062,-1082.95,0.00013225,2]
[395753851,1764720666071,-500.0,0.00013225,2]
[395753853,1764720666081,-904.58,0.00013225,2]
[395753855,1764720666090,-500.0,0.00013225,2]
[395753857,1764720666099,-399.425855,0.00013225,2]
[395753859,1764720666108,-949.81,0.00013225,2]
[395753861,1764720666119,-1519.14,0.00013225,2]
[395753863,1764720666129,-500.0,0.00013225,2]
[395753865,1764720666139,-764.98,0.00013225,2]
[395753867,1764720666149,-500.0,0.00013225,2]
[395753869,1764720666159,-500.0,0.00013225,2]
[395753871,1764720666168,-1092.43,0.00013225,2]
[395753873,1764720666178,-1824.48,0.00013225,2]
[395753875,1764720666188,-1213.28,0.00013225,2]
[395753877,1764720666196,-500.0,0.00013225,2]
[395753879,1764720666205,-500.0,0.00013225,2]
[395753881,1764720666215,-500.0,0.00013225,2]
[395753883,1764720666224,-577.92717195,0.00013225,2]
[395753884,1764720666233,-618.67,0.00013225,2]
[395753887,1764720666242,-6005.35,0.00013225,2]
[395753889,1764720666254,-649.64984797,0.00013225,2]
[395753890,1764720666264,-1853.96,0.00013225,2]
[395753892,1764720666273,-688.41,0.00013225,2]
[395753895,1764720666283,-791.57,0.00013225,2]
[395753897,1764720666293,-500.0,0.00013225,2]
[395753899,1764720666303,-500.0,0.00013225,2]
[395753901,1764720666313,-736.93,0.00013225,2]
[395753903,1764720666323,-2423.99,0.00013225,2]
[395753905,1764720666333,-515.47,0.00013225,2]
[395753907,1764720666343,-500.0,0.00013225,2]
[395753909,1764720666352,-500.0,0.00013225,2]
[395753911,1764720666362,-1556.52,0.00013225,2]
[395753913,1764720666372,-575.0,0.00013225,2]
[395753915,1764720666382,-738.16,0.00013225,2]
[395753917,1764720666392,-500.0,0.00013225,2]
[395753919,1764720666404,-500.0,0.00013225,2]
[395753920,1764720666413,-832.08,0.00013225,2]
[395753922,1764720666422,-500.0,0.00013225,2]
[395753924,1764720666431,-605.83,0.00013225,2]
[395753926,1764720666442,-765.51,0.00013225,2]
[395753928,1764720666452,-500.0,0.00013225,2]
[395753930,1764720666461,-500.0,0.00013225,2]
[395753932,1764720666471,-500.0,0.00013225,2]
[395753934,1764720666482,-985.24,0.00013225,2]
[395753936,1764720666492,-2311.81,0.00013225,2]
[395753938,1764720666505,-636.47,0.00013225,2]
[395753940,1764720666515,-500.0,0.00013225,2]
[395753942,1764720666524,-500.0,0.00013225,2]
[395753944,1764720666535,-2055.24,0.00013225,2]
[395753946,1764720666545,-594.21,0.00013225,2]
[395753948,1764720666555,-2016.21,0.00013225,2]
[395753950,1764720666565,-1307.44,0.00013225,2]
[395753952,1764720666575,-917.05,0.00013225,2]
[395753954,1764720666584,-861.2,0.00013225,2]
[395753956,1764720666595,-500.0,0.00013225,2]
[395753959,1764720666606,-500.0,0.00013225,2]
[395753961,1764720666615,-1514.01,0.00013225,2]
[395753962,1764720666625,-500.0,0.00013225,2]
[395753964,1764720666635,-1176.4,0.00013225,2]
[395753966,1764720666644,-657.81,0.00013225,2]
[395753968,1764720666654,-500.0,0.00013225,2]
[395753970,1764720666664,-500.0,0.00013225,2]
[395753972,1764720666674,-500.0,0.00013225,2]
[395753974,1764720666683,-500.0,0.00013225,2]
[395753976,1764720666693,-500.0,0.00013225,2]
[395753978,1764720666702,-529.33,0.00013225,2]
[395753980,1764720666712,-500.0,0.00013225,2]
[395753982,1764720666723,-559.55,0.00013225,2]
[395753984,1764720666733,-1061.28,0.00013225,2]
[395753986,1764720666743,-500.0,0.00013225,2]
[395753988,1764720666755,-500.0,0.00013225,2]
[395753990,1764720666765,-1267.53,0.00013225,2]
[395753992,1764720666775,-1952.3,0.00013225,2]
[395753994,1764720666784,-729.98,0.00013225,2]
[395753996,1764720666794,-500.0,0.00013225,2]
[395753998,1764720666804,-500.0,0.00013225,2]
[395754000,1764720666813,-1457.04,0.00013225,2]
[395754002,1764720666823,-500.0,0.00013225,2]
[395754004,1764720666832,-500.0,0.00013225,2]
[395754006,1764720666842,-500.0,0.00013225,2]
[395754008,1764720666852,-1022.34,0.00013225,2]
[395754010,1764720666862,-532.24,0.00013225,2]
[395754012,1764720666871,-731.6,0.00013225,2]
[395754031,1764720667037,-1418.03,0.00013225,2]
[395754034,1764720667053,-1125.57,0.00013225,2]
[395754035,1764720667063,-500.0,0.00013225,2]
[395754038,1764720667072,-1058.04,0.00013225,2]
[395754040,1764720667082,-634.67171281,0.00013225,2]
[395754042,1764720667091,-500.0,0.00013225,2]
[395754044,1764720667101,-841.13,0.00013225,2]
[395754046,1764720667111,-6149.96,0.00013225,2]
[395754048,1764720667120,-500.0,0.00013225,2]
[395754050,1764720667131,-1697.03,0.00013225,2]
[395754051,1764720667140,-1113.29,0.00013225,2]
[395754053,1764720667150,-500.0,0.00013225,2]
[395754055,1764720667160,-500.0,0.00013225,2]
[395754057,1764720667169,-1005.89,0.00013225,2]
[395754059,1764720667180,-1911.99,0.00013225,2]
[395754061,1764720667190,-6933.66,0.00013225,2]
[395754063,1764720667200,-939.17,0.00013225,2]
[395754065,1764720667209,-500.0,0.00013225,2]
[395754067,1764720667220,-500.0,0.00013225,2]
[395754069,1764720667230,-1124.71,0.00013225,2]
[395754071,1764720667239,-3614.16,0.00013225,2]
[395754073,1764720667251,-500.0,0.00013225,2]
[395754075,1764720667260,-1537.21,0.00013225,2]
[395754077,1764720667270,-500.0,0.00013225,2]
[395754079,1764720667280,-1139.09,0.00013225,2]
[395754081,1764720667289,-751.51,0.00013225,2]
[395754083,1764720667300,-1089.7,0.00013225,2]
[395754085,1764720667315,-618.3,0.00013225,2]
[395754087,1764720667325,-500.0,0.00013225,2]
[395754089,1764720667336,-10044.44,0.00013225,2]
[395754091,1764720667346,-633.2,0.00013225,2]
[395754093,1764720667358,-646.12,0.00013225,2]
[395754095,1764720667367,-623.17,0.00013225,2]
[395754097,1764720667377,-1340.19,0.00013225,2]
[395754099,1764720667386,-1721.06,0.00013225,2]
[395754101,1764720667396,-500.0,0.00013225,2]
[395754104,1764720667409,-1687.99,0.00013225,2]
[395754106,1764720667423,-500.0,0.00013225,2]
[395754107,1764720667433,-633.36,0.00013225,2]
[395754109,1764720667444,-2133.42,0.00013225,2]
[395754111,1764720667455,-835.79,0.00013225,2]
[395754113,1764720667464,-500.0,0.00013225,2]
[395754115,1764720667474,-1150.06,0.00013225,2]
[395754117,1764720667483,-716.76,0.00013225,2]
[395754119,1764720667494,-500.0,0.00013225,2]
[395754121,1764720667504,-500.0,0.00013225,2]
[395754123,1764720667513,-513.58,0.00013225,2]
[395754125,1764720667523,-3924.31,0.00013225,2]
[395754127,1764720667533,-500.0,0.00013225,2]
[395754129,1764720667542,-538.16,0.00013225,2]
[395754131,1764720667552,-500.0,0.00013225,2]
[395754133,1764720667562,-500.0,0.00013225,2]
[395754135,1764720667572,-500.0,0.00013225,2]
[395754137,1764720667582,-1330.31,0.00013225,2]
[395754139,1764720667591,-1578.01,0.00013225,2]
[395754141,1764720667601,-4449.25,0.00013225,2]
[395754143,1764720667611,-587.8,0.00013225,2]
[395754145,1764720667621,-500.0,0.00013225,2]
[395754147,1764720667631,-1029.45,0.00013225,2]
[395754149,1764720667640,-500.0,0.00013225,2]
[395754151,1764720667650,-5537.05,0.00013225,2]
[395754153,1764720667660,-1253.26,0.00013225,2]
[395754155,1764720667669,-500.0,0.00013225,2]
[395754157,1764720667679,-550.3,0.00013225,2]
[395754159,1764720667689,-500.0,0.00013225,2]
[395754161,1764720667700,-3748.47,0.00013225,2]
[395754163,1764720667709,-500.0,0.00013225,2]
[395754165,1764720667719,-500.0,0.00013225,2]
[395754167,1764720667729,-500.0,0.00013225,2]
[395754169,1764720667739,-922.74,0.00013225,2]
[395754171,1764720667750,-1274.21,0.00013225,2]
[395754173,1764720667759,-2304.86,0.00013225,2]
[395754175,1764720667769,-4841.43,0.00013225,2]
[395754177,1764720667779,-500.0,0.00013225,2]
[395754179,1764720667788,-1648.98,0.00013225,2]
[395754181,1764720667799,-547.39,0.00013225,2]
[395754183,1764720667809,-500.0,0.00013225,2]
[395754185,1764720667819,-1511.05,0.00013225,2]
[395754187,1764720667829,-820.17,0.00013225,2]
[395754189,1764720667838,-1051.62,0.00013225,2]
[395754192,1764720667849,-500.0,0.00013225,2]
[395754194,1764720667859,-1151.41,0.00013225,2]
[395754196,1764720667868,-584.09,0.00013225,2]
[395754198,1764720667878,-500.0,0.00013225,2]
[395754200,1764720667887,-2059.31,0.00013225,2]
[395754201,1764720667897,-500.0,0.00013225,2]
[395754203,1764720667907,-500.0,0.00013225,2]
[395754206,1764720667916,-1897.89,0.00013225,2]
[395754208,1764720667926,-573.64,0.00013225,2]
[395754210,1764720667936,-500.0,0.00013225,2]
[395754212,1764720667945,-726.19,0.00013225,2]
[395754214,1764720667954,-500.0,0.00013225,2]
[395754216,1764720667967,-500.0,0.00013225,2]
[395754218,1764720667976,-500.0,0.00013225,2]
[395754220,1764720667985,-991.98,0.00013225,2]
[395754222,1764720667994,-500.0,0.00013225,2]
[395754224,1764720668004,-656.47,0.00013225,2]
[395754226,1764720668014,-500.0,0.00013225,2]
[395754228,1764720668023,-1432.21,0.00013225,2]
[395754230,1764720668032,-500.0,0.00013225,2]
[395754231,1764720668043,-1523.26,0.00013225,2]
[395754233,1764720668054,-668.91,0.00013225,2]
[395754236,1764720668064,-5584.11,0.00013225,2]
[395754237,1764720668074,-1123.33,0.00013225,2]
[395754239,1764720668086,-300.68403077,0.00013225,2]
[395754241,1764720668096,-500.0,0.00013225,2]
[395754243,1764720668105,-500.0,0.00013225,2]
[395754246,1764720668115,-541.35,0.00013225,2]
[395754248,1764720668126,-545.34,0.00013225,2]
[395754250,1764720668137,-500.0,0.00013225,2]
[395754251,1764720668148,-500.0,0.00013225,2]
[395754253,1764720668158,-1128.98,0.00013225,2]
[395754256,1764720668168,-500.0,0.00013225,2]
[395754257,1764720668178,-577.61,0.00013225,2]
[395754260,1764720668188,-1348.79,0.00013225,2]
[395754261,1764720668198,-500.0,0.00013225,2]
[395754264,1764720668208,-4500.02,0.00013225,2]
[395754266,1764720668219,-500.0,0.00013225,2]
[395754268,1764720668228,-1530.49,0.00013225,2]
[395754270,1764720668238,-500.0,0.00013225,2]
[395754272,1764720668248,-500.0,0.00013225,2]
[395754273,1764720668257,-334.81895652,0.00013225,2]
[395754275,1764720668267,-500.0,0.00013225,2]
[395754277,1764720668278,-1174.79,0.00013225,2]
[395754279,1764720668288,-3422.84,0.00013225,2]
[395754282,1764720668298,-500.0,0.00013225,2]
[395754283,1764720668307,-500.0,0.00013225,2]
[395754285,1764720668317,-500.0,0.00013225,2]
[395754287,1764720668326,-500.0,0.00013226,2]
[395754289,1764720668336,-500.0,0.00013226,2]
[395754291,1764720668346,-307.39703416,0.00013226,2]
[395754293,1764720668356,-500.0,0.00013226,2]
[395754296,1764720668366,-500.0,0.00013226,2]
[395754297,1764720668377,-822.31,0.00013226,2]
[395754299,1764720668386,-594.8,0.00013226,2]
[395754300,1764720668396,-819.12,0.00013226,2]
[395754302,1764720668406,-500.0,0.00013226,2]
[395754304,1764720668419,-500.0,0.00013226,2]
[395754306,1764720668429,-500.0,0.00013226,2]
[395754308,1764720668439,-530.47,0.00013226,2]
[395754310,1764720668448,-500.0,0.00013226,2]
[395754312,1764720668458,-743.15,0.00013226,2]
[395754314,1764720668467,-500.0,0.00013226,2]
[395754316,1764720668476,-500.0,0.00013226,2]
[395754318,1764720668486,-500.0,0.00013226,2]
[395754320,1764720668496,-500.0,0.00013226,2]
[395754322,1764720668505,-500.0,0.00013226,2]
[395754324,1764720668516,-500.0,0.00013226,2]
[395754326,1764720668525,-500.0,0.00013226,2]
[395754328,1764720668536,-500.0,0.00013226,2]
[395754330,1764720668545,-750.81,0.00013226,2]
[395754332,1764720668555,-500.0,0.00013226,2]
[395754334,1764720668565,-500.0,0.00013226,2]
[395754336,1764720668575,-500.0,0.00013226,2]
[395754338,1764720668584,-500.0,0.00013226,2]
[395754340,1764720668593,-655.86,0.00013226,2]
[395754342,1764720668603,-500.0,0.00013226,2]
[395754344,1764720668613,-447.89305145,0.00013226,2]
[395754346,1764720668623,-500.0,0.00013226,2]
[395754348,1764720668633,-500.0,0.00013226,2]
[395754350,1764720668643,-1663.68,0.00013226,2]
[395754352,1764720668654,-500.0,0.00013226,2]
[395754354,1764720668664,-721.65,0.00013226,2]
[395754356,1764720668673,-698.39,0.00013226,2]
[395754358,1764720668683,-500.0,0.00013226,2]
[395754360,1764720668694,-500.0,0.00013226,2]
[395754362,1764720668704,-500.0,0.00013226,2]
[395754364,1764720668714,-500.0,0.00013226,2]
[395754366,1764720668723,-506.93,0.00013226,2]
[395754368,1764720668733,-500.0,0.00013226,2]
[395754370,1764720668742,-500.0,0.00013226,2]
[395754372,1764720668753,-500.0,0.00013226,2]
[395754374,1764720668763,-680.98,0.00013226,2]
[395754376,1764720668773,-500.0,0.00013226,2]
[395754378,1764720668783,-508.69,0.00013226,2]
[395754380,1764720668792,-1252.73,0.00013226,2]
[395754382,1764720668802,-581.87,0.00013226,2]
[395754384,1764720668812,-500.0,0.00013226,2]
[395754386,1764720668822,-500.0,0.00013226,2]
[395754388,1764720668832,-1098.72,0.00013226,2]
[395754390,1764720668843,-500.0,0.00013226,2]
[395754392,1764720668853,-500.0,0.00013226,2]
[395754394,1764720668863,-500.0,0.00013226,2]
[395754396,1764720668874,-841.32,0.00013226,2]
[395754398,1764720668884,-361.58,0.00013226,2]
[395754401,1764720668894,-500.0,0.00013226,2]
[395754403,1764720668904,-276.91661767,0.00013226,2]
[395754405,1764720668913,-500.0,0.00013226,2]
[395754407,1764720668923,-500.0,0.00013226,2]
[395754409,1764720668933,-500.0,0.00013226,2]
[395754411,1764720668943,-500.0,0.00013226,2]
[395754413,1764720668952,-500.0,0.00013226,2]
[395754415,1764720668962,-500.0,0.00013226,2]
[395754417,1764720668971,-500.0,0.00013226,2]
[395754419,1764720668981,-506.96693599,0.00013226,2]
[395754421,1764720668991,-500.0,0.00013226,2]
[395754423,1764720669001,-500.0,0.00013226,2]
[395754425,1764720669011,-531.9,0.00013226,2]
[395754427,1764720669021,-500.0,0.00013226,2]
[395754428,1764720669031,-500.0,0.00013226,2]
[395754431,1764720669041,-214.01394431,0.00013226,2]
[395754432,1764720669050,-500.0,0.00013226,2]
[395754434,1764720669059,-568.73,0.00013226,2]
[395754436,1764720669069,-500.0,0.00013226,2]
[395754438,1764720669079,-500.0,0.00013226,2]
[395754440,1764720669088,-500.0,0.00013226,2]
[395754442,1764720669098,-500.0,0.00013226,2]
[395754444,1764720669108,-500.0,0.00013226,2]
[395754446,1764720669117,-603.19,0.00013226,2]
[395754448,1764720669128,-500.0,0.00013226,2]
[395754450,1764720669137,-500.0,0.00013226,2]
[395754452,1764720669146,-500.0,0.00013226,2]
[395754454,1764720669156,-784.39,0.00013226,2]
[395754456,1764720669167,-500.0,0.00013226,2]
[395754458,1764720669176,-500.0,0.00013226,2]
[395754460,1764720669186,-649.84266453,0.00013226,2]
[395754462,1764720669195,-500.0,0.00013226,2]
[395754464,1764720669205,-500.0,0.00013226,2]
[395754466,1764720669215,-1678.87,0.00013226,2]
[395754468,1764720669226,-1000.0,0.00013226,2]
[395754470,1764720669235,-500.0,0.00013226,2]
[395754472,1764720669245,-500.0,0.00013226,2]
[395754474,1764720669255,-500.0,0.00013226,2]
[395754476,1764720669265,-685.74,0.00013226,2]
[395754478,1764720669275,-500.0,0.00013226,2]
[395754481,1764720669285,-500.0,0.00013226,2]
[395754483,1764720669295,-500.0,0.00013226,2]
[395754485,1764720669305,-500.0,0.00013226,2]
[395754486,1764720669314,-500.0,0.00013226,2]
[395754488,1764720669323,-500.0,0.00013226,2]
[395754490,1764720669334,-500.0,0.00013226,2]
[395754492,1764720669343,-1142.5,0.00013226,2]
[395754494,1764720669352,-500.0,0.00013226,2]
[395754496,1764720669362,-500.0,0.00013226,2]
[395754498,1764720669371,-777.29,0.00013226,2]
[395754500,1764720669380,-500.0,0.00013226,2]
[395754502,1764720669389,-500.0,0.00013226,2]
[395754504,1764720669399,-568.34399667,0.00013226,2]
[395754506,1764720669411,-500.0,0.00013226,2]
[395754508,1764720669422,-500.0,0.00013226,2]
[395754510,1764720669431,-500.0,0.00013226,2]
[395754512,1764720669440,-500.0,0.00013226,2]
[395754514,1764720669450,-365.64,0.00013226,2]
[395754516,1764720669460,-526.85,0.00013226,2]
[395754517,1764720669470,-899.47,0.00013226,2]
[395754518,1764720669479,-500.0,0.00013226,2]
[395754519,1764720669544,-669.85,0.00013226,2]
[395754520,1764720669554,-500.0,0.00013226,2]
[395754521,1764720669563,-1041.51,0.00013226,2]
[395754522,1764720669572,-500.0,0.00013226,2]
[395754523,1764720669581,-500.0,0.00013226,2]
[395754524,1764720669590,-500.0,0.00013226,2]
[395754525,1764720669599,-428.82605177,0.00013226,2]
[395754526,1764720669608,-500.0,0.00013226,2]
[395754527,1764720669617,-932.7,0.00013226,2]
[395754528,1764720669627,-500.0,0.00013226,2]
[395754529,1764720669637,-1319.62,0.00013226,2]
[395754530,1764720669647,-500.0,0.00013226,2]
[395754531,1764720669657,-500.0,0.00013226,2]
[395754532,1764720669666,-562.03,0.00013226,2]
[395754533,1764720669675,-500.0,0.00013226,2]
[395754534,1764720669685,-524.9,0.00013226,2]
[395754535,1764720669694,-500.0,0.00013226,2]
[395754536,1764720669704,-500.0,0.00013226,2]
[395754537,1764720669714,-868.72,0.00013226,2]
[395754538,1764720669724,-500.0,0.00013226,2]
[395754540,1764720669733,-500.0,0.00013226,2]
[395754542,1764720669743,-818.09,0.00013226,2]
[395754544,1764720669752,-500.0,0.00013226,2]
[395754546,1764720669761,-500.0,0.00013226,2]
[395754548,1764720669770,-821.87,0.00013226,2]
[395754550,1764720669781,-500.0,0.00013226,2]
[395754552,1764720669790,-500.0,0.00013226,2]
[395754554,1764720669799,-1093.15,0.00013226,2]
[395754556,1764720669809,-500.0,0.00013226,2]
[395754558,1764720669819,-500.0,0.00013226,2]
[395754560,1764720669828,-500.0,0.00013226,2]
[395754562,1764720669838,-203.51360563,0.00013226,2]
[395754564,1764720669847,-500.0,0.00013226,2]
[395754566,1764720669856,-612.48,0.00013226,2]
[395754568,1764720669865,-500.0,0.00013226,2]
[395754570,1764720669875,-500.0,0.00013226,2]
[395754572,1764720669884,-500.0,0.00013226,2]
[395754574,1764720669894,-500.0,0.00013226,2]
[395754576,1764720669903,-544.36,0.00013226,2]
[395754578,1764720669912,-539.64,0.00013226,2]
[395754580,1764720669922,-536.26440728,0.00013226,2]
[395754582,1764720669931,-500.0,0.00013226,2]
[395754584,1764720669942,-500.0,0.00013226,2]
[395754586,1764720669951,-545.16,0.00013226,2]
[395754588,1764720669961,-500.0,0.00013226,2]
[395754590,1764720669970,-500.0,0.00013226,2]
[395754592,1764720669979,-866.68,0.00013226,2]
[395754594,1764720669988,-500.0,0.00013226,2]
[395754596,1764720669997,-224.76645272,0.00013226,2]
[395754598,1764720670007,-500.0,0.00013226,2]
[395754600,1764720670016,-200.1982522,0.00013226,2]
[395754602,1764720670026,-500.0,0.00013226,2]